bitfinex/quotes_SOLUSD_20260220
["timestamp","ask_amount","ask_price","bid_price","bid_amount"]
[1771574416459,0.03722278,83.589,83.558,0.7776258]
[1771574417071,0.03722278,83.587,83.558,0.7776258]
[1771574419561,0.03722278,83.587,83.56,0.7776258]
[1771574420870,0.2,83.59,83.562,0.7776258]
[1771574421251,0.03901041,83.589,83.562,0.7776258]
[1771574422475,0.03901041,83.589,83.556,0.7776258]
[1771574422979,0.03901041,83.589,83.558,0.7776258]
[1771574424284,0.03901041,83.589,83.553,0.7776258]
[1771574424465,0.0400238,83.579,83.542,12.74765285]
[1771574424666,0.0400238,83.579,83.543,0.7776258]
[1771574426782,0.0400238,83.579,83.545,0.7776258]
[1771574427084,0.0400238,83.579,83.551,0.7776258]
[1771574429683,11.96377563,83.586,83.553,0.7776258]
[1771574430289,11.96377563,83.586,83.552,11.9685944]
[1771574430290,0.24196358,83.59,83.561,0.7776258]
[1771574430489,0.04196358,83.589,83.561,0.7776258]
[1771574432684,0.04196358,83.589,83.562,11.9671621]
[1771574432989,12.00526018,83.589,83.563,0.7776258]
[1771574433287,0.04289265,83.588,83.563,0.7776258]
[1771574435089,0.04289265,83.588,83.558,0.7776258]
[1771574435291,3.72056819,83.57,83.531,0.7776258]
[1771574435476,0.04347881,83.588,83.551,0.7776258]
[1771574435672,0.2,83.59,83.551,0.7776258]
[1771574435989,0.2,83.59,83.561,0.7776258]
[1771574437591,0.2,83.59,83.563,0.79157009]
[1771574438192,0.24463475,83.59,83.563,0.79157009]
[1771574439192,11.9632966,83.589,83.563,0.79157009]
[1771574440000,0.24490387,83.59,83.524,95.7804464]
[1771574440001,0.2,83.59,83.571,0.79157009]
[1771574441692,3.92056819,83.59,83.55,3.72056819]
[1771574441896,0.2,83.59,83.56,3.72056819]
[1771574442205,12.16319678,83.59,83.561,11.96730532]
[1771574442403,12.89590633,83.59,83.561,11.96730532]
[1771574442708,0.93270955,83.59,83.561,11.96730532]
[1771574442878,0.73270955,83.589,83.561,11.96730532]
[1771574443695,0.2,83.59,83.562,0.79157009]
[1771574443892,0.2,83.59,83.564,0.79157009]
[1771574445498,0.2,83.59,83.565,11.96673248]
[1771574445683,0.2,83.59,83.566,0.79157009]
[1771574446392,0.2,83.6,83.581,0.79157009]
[1771574446587,0.73270955,83.609,83.571,0.79157009]
[1771574446896,0.73270955,83.609,83.581,0.79157009]
[1771574447496,0.73270955,83.615,83.582,11.96429853]
[1771574447697,0.73270955,83.615,83.583,0.79157009]
[1771574449982,0.73270955,83.614,83.585,0.79157009]
[1771574450892,0.73270955,83.614,83.58,0.79157009]
[1771574451078,0.73270955,83.609,83.58,0.79157009]
[1771574451694,0.73270955,83.609,83.578,11.96485835]
[1771574451695,0.73270955,83.609,83.573,11.96548039]
[1771574451904,0.73270955,83.609,83.574,0.79157009]
[1771574452387,11.96057793,83.608,83.575,11.96530062]
[1771574452587,0.73270955,83.607,83.575,11.96530062]
[1771574453111,0.73270955,83.607,83.575,12.75687071]
[1771574453288,0.73270955,83.607,83.576,0.79157009]
[1771574454917,0.73270955,83.605,83.578,0.79157009]
[1771574455417,0.73270955,83.605,83.571,0.79157009]
[1771574456490,0.73270955,83.603,83.571,0.79157009]
[1771574457099,0.2,83.62,83.542,10.45945369]
[1771574457100,0.73270955,83.619,83.591,0.79157009]
[1771574458414,0.2,83.62,83.591,0.79157009]
[1771574458597,0.73270955,83.619,83.593,0.79157009]
[1771574458910,12.69171408,83.619,83.593,0.79157009]
[1771574459206,0.73270955,83.618,83.593,0.79157009]
[1771574459409,0.73270955,83.618,83.55,3.7152198]
[1771574459410,0.73270955,83.618,83.585,0.79157009]
[1771574460505,0.73270955,83.616,83.587,0.79157009]
[1771574464014,11.95957663,83.615,83.587,0.79157009]
[1771574464201,0.793438,83.614,83.587,0.79157009]
[1771574465502,0.793438,83.612,83.587,0.79157009]
[1771574466714,11.95909016,83.619,83.591,0.72905713]
[1771574466920,0.2,83.62,83.601,0.72905713]
[1771574467215,0.793438,83.635,83.611,0.78093142]
[1771574467593,11.9563192,83.638,83.612,11.96000574]
[1771574467799,11.9563192,83.638,83.613,0.78093142]
[1771574468314,0.80230188,83.637,83.601,0.78093142]
[1771574468519,0.80230188,83.629,83.601,0.78093142]
[1771574469818,0.2,83.64,83.581,0.78093142]
[1771574469819,0.80230188,83.619,83.581,0.78093142]
[1771574471323,0.80230188,83.617,83.582,12.74513859]
[1771574472628,0.80230188,83.615,83.583,0.78093142]
[1771574475410,0.80230188,83.609,83.578,0.78093142]
[1771574477620,0.80230188,83.608,83.58,0.78093142]
[1771574481730,0.80230188,83.608,83.582,0.78093142]
[1771574482843,11.96072099,83.607,83.582,0.78093142]
[1771574483037,0.80230188,83.606,83.582,0.78093142]
[1771574485035,0.80230188,83.606,83.583,11.96415539]
[1771574485233,0.80230188,83.606,83.584,0.78093142]
[1771574488234,0.80230188,83.604,83.584,0.78093142]
[1771574494331,11.96129325,83.603,83.584,0.78093142]
[1771574494539,0.80230188,83.602,83.584,0.78093142]
[1771574506056,0.80230188,83.602,83.586,0.75537115]
[1771574506654,0.80820961,83.61,83.586,0.75537115]
[1771574511560,0.80820961,83.608,83.58,0.75537115]
[1771574511735,0.80820961,83.608,83.571,0.75537115]
[1771574512363,3.71445466,83.6,83.571,0.75537115]
[1771574512536,0.80820961,83.599,83.571,0.75537115]
[1771574512737,0.80820961,83.589,83.552,0.75537115]
[1771574513840,0.80820961,83.587,83.554,0.75537115]
[1771574514466,0.80820961,83.587,83.561,0.75537115]
[1771574515057,11.96343972,83.588,83.561,0.75537115]
[1771574515644,0.80820961,83.587,83.561,0.75537115]
[1771574515939,0.80820961,83.587,83.563,0.75537115]
[1771574516741,0.80820961,83.585,83.563,0.75537115]
[1771574521663,0.80820961,83.583,83.563,0.75537115]
[1771574522666,0.80820961,83.583,83.558,0.75537115]
[1771574523041,11.96401225,83.584,83.55,0.75537115]
[1771574523042,0.80820961,83.569,83.55,0.75537115]
[1771574523958,0.80617754,83.568,83.55,0.75537115]
[1771574525367,0.80617754,83.566,83.55,0.75537115]
[1771574525561,0.80617754,83.566,83.543,0.8110558]
[1771574527248,0.80617754,83.566,83.543,12.78093957]
[1771574527448,3.71445466,83.59,83.551,0.80199064]
[1771574527745,3.71445466,83.59,83.543,11.96988377]
[1771574527746,0.82058818,83.599,83.561,0.80199064]
[1771574528162,0.82058818,83.589,83.561,0.80199064]
[1771574529970,12.7840279,83.588,83.561,0.80199064]
[1771574530175,0.82058818,83.587,83.561,0.80199064]
[1771574532370,11.96372598,83.586,83.561,0.80199064]
[1771574534067,0.82058818,83.583,83.561,0.80199064]
[1771574538452,0.82058818,83.583,83.561,12.76927506]
[1771574538656,0.82058818,83.583,83.562,0.80199064]
[1771574539981,11.9632966,83.589,83.562,0.80199064]
[1771574540685,12.78388478,83.589,83.562,0.80199064]
[1771574540864,0.82058818,83.588,83.562,0.80199064]
[1771574541984,2.47215037,104.2,83.562,0.80199064]
[1771574542283,0.82058818,83.599,83.571,0.80199064]
[1771574544483,0.82058818,83.599,83.572,11.96573014]
[1771574544681,0.82058818,83.597,83.573,0.80199064]
[1771574548976,0.82058818,83.595,83.573,0.80199064]
[1771574550981,0.82058818,83.595,83.57,3.71445466]
[1771574550982,0.82058818,83.589,83.551,0.80199064]
[1771574552706,0.82058818,83.587,83.553,0.80199064]
[1771574552992,0.82058818,83.579,83.553,0.80199064]
[1771574554275,0.82058818,83.579,83.555,0.80199064]
[1771574554606,0.82058818,83.578,83.555,0.80199064]
[1771574555475,0.82058818,83.604,83.571,0.80199064]
[1771574556481,0.82058818,83.603,83.573,0.80199064]
[1771574559005,11.96126595,83.604,83.575,0.75375451]
[1771574559407,0.74278254,83.603,83.575,0.75375451]
[1771574562198,0.74278254,83.601,83.575,0.75375451]
[1771574565902,0.74278254,83.601,83.576,11.96515746]
[1771574566105,0.74278254,83.601,83.577,0.75375451]
[1771574569012,3.7151718,83.61,83.578,11.96487113]
[1771574569202,0.74278254,83.617,83.581,0.75375451]
[1771574572013,0.74278254,83.615,83.581,0.75375451]
[1771574572223,0.74278254,83.609,83.581,0.75375451]
[1771574578305,29.89107691,83.637,83.582,0.75375451]
[1771574578516,0.74278254,83.619,83.582,0.75375451]
[1771574579607,0.74278254,83.619,83.584,0.75375451]
[1771574579911,0.74278254,83.617,83.584,0.75375451]
[1771574582710,0.74278254,83.628,83.601,0.75375451]
[1771574584706,0.73464312,83.626,83.601,0.75375451]
[1771574587708,0.73857876,83.624,83.601,0.75375451]
[1771574590797,0.73857876,83.622,83.601,0.75375451]
[1771574591615,11.95614486,83.639,83.611,0.69721335]
[1771574591994,0.73857876,83.638,83.611,0.69721335]
[1771574592514,11.95643076,83.637,83.611,0.69721335]
[1771574592714,12.69500952,83.637,83.611,0.69721335]
[1771574593015,0.73857876,83.636,83.611,0.69721335]
[1771574596423,11.95671668,83.635,83.621,0.69721335]
[1771574597101,0.73857876,83.634,83.621,0.69721335]
[1771574597505,0.2,83.64,83.621,0.69721335]
[1771574597726,0.73857876,83.648,83.621,0.69721335]
[1771574598021,0.73857876,83.648,83.62,3.7151718]
[1771574598022,12.69229397,83.656,83.631,0.69721335]
[1771574598611,0.73857876,83.655,83.631,0.69721335]
[1771574600204,0.73857876,83.653,83.631,0.69721335]
[1771574601325,0.73857876,83.653,83.621,0.69721335]
[1771574601520,0.73857876,83.649,83.621,0.69721335]
[1771574602823,0.73857876,83.649,83.61,3.7151718]
[1771574602824,0.73857876,83.654,83.623,0.69721335]
[1771574603912,3.7151718,83.65,83.623,0.69721335]
[1771574604113,0.73857876,83.649,83.623,0.69721335]
[1771574606230,0.73857876,83.647,83.623,0.69721335]
[1771574608319,11.95514429,83.646,83.623,0.69721335]
[1771574608514,0.73857876,83.645,83.623,0.69721335]
[1771574610032,11.95543015,83.644,83.623,0.69721335]
[1771574610212,0.73671848,83.643,83.623,0.69721335]
[1771574611130,0.73671848,83.643,83.613,11.9597273]
[1771574611131,11.95342943,83.658,83.614,0.69721335]
[1771574611340,0.73857876,83.657,83.621,0.69721335]
[1771574612533,0.73857876,83.655,83.623,0.69721335]
[1771574615334,0.73857876,83.653,83.625,0.69721335]
[1771574619628,0.73857876,83.653,83.627,0.70986842]
[1771574620133,3.9151718,83.66,83.627,0.70986842]
[1771574620134,0.73545876,83.651,83.627,0.70986842]
[1771574620640,11.9542868,83.652,83.627,0.70986842]
[1771574620835,11.9542868,83.652,83.63,3.7151718]
[1771574621143,0.73545876,83.652,83.631,0.70986842]
[1771574622241,0.93545876,83.66,83.633,0.70986842]
[1771574622425,0.2,83.66,83.633,0.70986842]
[1771574622742,0.2,83.66,83.641,0.70986842]
[1771574624738,0.93545876,83.66,83.641,0.70986842]
[1771574625922,11.95328655,83.659,83.641,0.70986842]
[1771574626134,0.73545876,83.658,83.641,0.70986842]
[1771574629147,0.73545876,83.658,83.636,0.70986842]
[1771574632952,0.2,83.67,83.65,3.70922061]
[1771574633845,0.2,83.67,83.64,3.70922061]
[1771574635752,0.2,83.67,83.65,3.70922061]
[1771574638739,0.93739468,83.67,83.65,3.70922061]
[1771574639850,0.73739468,83.669,83.65,3.70922061]
[1771574644456,0.73739468,83.669,83.646,11.95514184]
[1771574645255,0.73739468,83.669,83.647,0.0200855]
[1771574646965,0.2,83.69,83.66,3.70922061]
[1771574647149,0.2,83.69,83.67,3.70922061]
[1771574647545,0.74744093,83.689,83.65,3.70922061]
[1771574648465,0.74744093,83.689,83.66,3.70922061]
[1771574649865,0.74744093,83.689,83.661,11.9530008]
[1771574654162,0.74744093,83.687,83.661,11.9530008]
[1771574657266,0.74744093,83.687,83.64,3.70922061]
[1771574657267,0.74744093,83.687,83.67,3.70922061]
[1771574666375,0.74744093,83.687,83.66,3.70922061]
[1771574667981,0.74744093,83.687,83.661,11.9530008]
[1771574668476,0.2,83.7,83.68,3.70922061]
[1771574669476,0.74744093,83.699,83.68,3.70922061]
[1771574669681,0.2,83.7,83.68,3.70922061]
[1771574670290,0.2,83.7,83.681,11.95014399]
[1771574670966,0.2,83.7,83.69,3.70922061]
[1771574672287,0.74744093,83.713,83.69,3.70922061]
[1771574672584,0.74744093,83.717,83.7,3.70922061]
[1771574673003,0.74744093,83.724,83.7,3.70922061]
[1771574673285,0.74744093,83.724,83.71,3.70922061]
[1771574676785,0.74744093,83.722,83.7,3.70922061]
[1771574676983,0.74744093,83.722,83.671,29.87872638]
[1771574677186,0.74744093,83.722,83.69,3.70922061]
[1771574677578,0.74744093,83.719,83.671,11.95157222]
[1771574677783,0.74744093,83.719,83.659,29.88316668]
[1771574677784,0.74744093,83.699,83.66,3.70922061]
[1771574678887,0.74744093,83.689,83.61,3.70922061]
[1771574679074,0.74744093,83.679,83.64,3.70922061]
[1771574679281,0.74744093,83.679,83.65,3.70922061]
[1771574683499,0.74744093,83.679,83.651,11.95442971]
[1771574684580,0.74744093,83.679,83.66,3.70922061]
[1771574685082,0.74744093,83.684,83.66,3.70922061]
[1771574685279,3.70922061,83.71,83.671,0.69861137]
[1771574685478,3.70922061,83.72,83.68,3.70922061]
[1771574686497,41.80651942,83.719,83.68,3.70922061]
[1771574687291,11.94500519,83.717,83.68,3.70922061]
[1771574687493,0.67637985,83.716,83.68,3.70922061]
[1771574687796,0.67637985,83.709,83.68,3.70922061]
[1771574688097,0.67637985,83.709,83.68,3.70582858]
[1771574689596,0.67637985,83.722,83.691,0.69861137]
[1771574693380,0.67637985,83.72,83.691,0.69861137]
[1771574695801,0.67637985,83.718,83.691,0.69861137]
[1771574696097,0.67637985,83.718,83.69,3.70582858]
[1771574697300,0.67637985,83.709,83.644,0.69861137]
[1771574697598,0.67637985,83.699,83.661,0.69861137]
[1771574698401,0.67637985,83.697,83.663,0.69861137]
[1771574702597,0.67637985,83.695,83.665,0.69861137]
[1771574703494,0.67637985,83.695,83.67,3.70582858]
[1771574705011,0.70396851,83.693,83.67,3.70582858]
[1771574705306,11.94697518,83.704,83.681,0.70251883]
[1771574705512,0.70396851,83.703,83.66,3.70582858]
[1771574705702,0.72497988,83.699,83.66,3.70582858]
[1771574707524,0.72497988,83.697,83.66,3.70582858]
[1771574709502,0.72497988,83.695,83.66,3.74539482]
[1771574709722,0.72497988,83.695,83.661,0.03956624]
[1771574710134,59.72614393,83.716,83.656,11.95360909]
[1771574710135,0.72497988,83.713,83.681,0.04020033]
[1771574710420,0.72497988,83.713,83.69,3.70582858]
[1771574710802,0.72497988,83.713,83.687,0.04020033]
[1771574710803,0.72497988,83.712,83.68,3.70582858]
[1771574711704,0.72497988,83.709,83.673,0.04020033]
[1771574712423,41.81051474,83.711,83.654,0.04145934]
[1771574712424,0.72497988,83.699,83.654,0.04145934]
[1771574712734,0.72497988,83.689,83.654,0.04145934]
[1771574712904,0.72497988,83.689,83.651,11.95442971]
[1771574713619,41.82200554,83.688,83.65,3.70582858]
[1771574713922,0.72497988,83.687,83.65,3.70582858]
[1771574715119,0.72497988,83.687,83.66,3.70582858]
[1771574715632,0.72497988,83.687,83.661,0.04330441]
[1771574716535,11.94943001,83.686,83.661,0.04330441]
[1771574716717,0.72497988,83.685,83.661,0.04330441]
[1771574718058,0.72497988,83.685,83.66,3.70582858]
[1771574718739,0.72497988,83.683,83.66,3.70582858]
[1771574719818,0.72497988,83.683,83.653,0.0450933]
[1771574720018,0.72497988,83.683,83.65,3.70582858]
[1771574721231,0.72497988,83.681,83.66,3.70582858]
[1771574723328,0.72497988,83.681,83.661,0.04792636]
[1771574724540,0.72497988,83.681,83.66,3.70582858]
[1771574727318,0.72497988,83.686,83.662,0.05009501]
[1771574727517,0.72497988,83.686,83.661,11.9530008]
[1771574727518,0.72497988,83.698,83.67,3.75592359]
[1771574728639,0.72497988,83.696,83.67,0.05009501]
[1771574728941,0.72497988,83.696,83.661,0.05062069]
[1771574732451,0.72497988,83.706,83.681,0.05267578]
[1771574733540,0.72497988,83.706,83.69,3.70582858]
[1771574735353,0.72497988,83.713,83.7,3.70582858]
[1771574735647,0.72497988,83.718,83.7,3.70582858]
[1771574735849,11.94329324,83.729,83.71,3.70582858]
[1771574735850,0.72497988,83.728,83.71,3.70582858]
[1771574736027,0.72497988,83.728,83.7,3.70582858]
[1771574736227,0.72497988,83.728,83.69,3.76044679]
[1771574736426,0.72497988,83.726,83.691,0.05461821]
[1771574736839,0.72497988,83.726,83.69,3.70582858]
[1771574737027,0.72497988,83.726,83.678,0.05461821]
[1771574737028,0.72497988,83.719,83.68,3.70582858]
[1771574737639,0.72497988,83.709,83.673,11.9512595]
[1771574738533,3.70582858,83.71,83.673,11.9512595]
[1771574738534,0.72497988,83.707,83.673,11.9512595]
[1771574738835,0.72497988,83.707,83.68,3.70582858]
[1771574739245,0.72497988,83.707,83.67,3.70582858]
[1771574741252,0.72497988,83.699,83.652,0.05735028]
[1771574741456,0.72497988,83.699,83.66,3.70582858]
[1771574742656,0.72497988,83.689,83.644,11.95543015]
[1771574742872,0.72497988,83.659,83.622,0.05779416]
[1771574743042,0.72497988,83.649,83.611,11.96014878]
[1771574743238,0.72497988,83.649,83.609,0.05779416]
[1771574743239,0.72497988,83.647,83.61,3.70582858]
[1771574743450,0.72497988,83.647,83.62,3.76407463]
[1771574744258,0.72497988,83.647,83.63,3.70582858]
[1771574744465,0.72497988,83.647,83.62,0.05824605]
[1771574744645,0.72497988,83.647,83.62,3.76407463]
[1771574745836,0.72497988,83.647,83.62,3.70582858]
[1771574749838,0.72497988,83.647,83.62,3.71063432]
[1771574750243,0.72497988,83.645,83.62,3.71063432]
[1771574753071,11.95328655,83.659,83.621,0.06194847]
[1771574753258,0.72497988,83.664,83.64,3.71063432]
[1771574753259,12.67765666,83.664,83.64,3.71063432]
[1771574753653,0.72497988,83.664,83.641,0.06234671]
[1771574754163,11.95200468,83.668,83.65,4.42002794]
[1771574754369,11.95000119,83.682,83.651,0.70939362]
[1771574756269,0.68625002,83.679,83.651,0.70939362]
[1771574757062,0.68625002,83.679,83.65,3.71063432]
[1771574757473,0.68625002,83.679,83.641,0.70939362]
[1771574758867,0.68625002,83.677,83.641,0.70939362]
[1771574760483,0.68625002,83.677,83.642,0.70939362]
[1771574760654,0.68625002,83.677,83.651,0.70939362]
[1771574761078,0.68625002,83.675,83.651,0.70939362]
[1771574761374,3.91063432,83.73,83.661,0.70939362]
[1771574761375,0.68625002,83.688,83.661,0.70939362]
[1771574762969,0.68625002,83.688,83.653,0.70939362]
[1771574764583,0.72502714,83.686,83.66,3.71063432]
[1771574764958,0.72502714,83.686,83.66,4.44976]
[1771574766777,0.72502714,83.684,83.66,4.44976]
[1771574767277,0.72502714,83.684,83.661,0.73543877]
[1771574767467,11.94903452,83.689,83.662,0.73543877]
[1771574767670,0.70981026,83.688,83.67,3.71063432]
[1771574767872,0.70981026,83.688,83.662,0.73543877]
[1771574768381,0.70981026,83.688,83.67,3.71063432]
[1771574768593,0.70981026,83.686,83.67,3.71063432]
[1771574768767,11.94928722,83.687,83.67,0.73543877]
[1771574769182,11.94928722,83.687,83.671,0.73543877]
[1771574769361,0.70981026,83.695,83.67,3.71063432]
[1771574769561,29.86560205,83.709,83.655,29.88462292]
[1771574769562,11.9476125,83.699,83.68,3.71063432]
[1771574769869,11.9476125,83.699,83.681,0.73543877]
[1771574770063,47.77434376,83.727,83.671,11.95157222]
[1771574770064,0.70981026,83.712,83.691,0.73543877]
[1771574770483,0.70981026,83.712,83.67,3.71063432]
[1771574770484,0.70981026,83.711,83.685,0.73543877]
[1771574770785,0.70981026,83.711,83.681,0.73543877]
[1771574771161,0.70981026,83.711,83.69,3.71063432]
[1771574772377,0.70981026,83.709,83.687,0.73543877]
[1771574773694,0.70981026,83.709,83.69,3.71063432]
[1771574773883,0.70981026,83.728,83.691,0.73543877]
[1771574774367,0.70981026,83.728,83.71,3.71063432]
[1771574774979,11.94329324,83.729,83.711,0.73543877]
[1771574775387,0.70981026,83.733,83.72,3.71063432]
[1771574775690,11.94244015,83.735,83.72,3.71063432]
[1771574775691,53.84,83.739,83.72,3.71063432]
[1771574775870,0.70981026,83.738,83.72,3.71063432]
[1771574776070,0.70981026,83.738,83.7,3.71063432]
[1771574776071,53.84,83.739,83.73,3.71063432]
[1771574776375,0.70981026,83.752,83.731,0.04140016]
[1771574777086,0.70981026,83.752,83.73,3.71063432]
[1771574777477,0.74513046,83.75,83.724,0.04251543]
[1771574777678,0.74513046,83.75,83.72,3.71063432]
[1771574777866,0.74513046,83.748,83.72,3.71063432]
[1771574779393,11.94072623,83.747,83.721,0.04469894]
[1771574779566,11.94072623,83.747,83.722,0.04469894]
[1771574779770,0.74513046,83.748,83.722,0.04469894]
[1771574779971,11.94072623,83.747,83.722,0.04469894]
[1771574780274,0.74513046,83.746,83.722,0.04469894]
[1771574781468,11.9410114,83.745,83.722,0.04469894]
[1771574781992,12.68614186,83.745,83.722,0.04469894]
[1771574782286,0.74513046,83.745,83.722,0.04469894]
[1771574784687,0.74513046,83.743,83.72,3.71063432]
[1771574785394,0.74513046,83.743,83.72,3.76158727]
[1771574786789,0.74513046,83.743,83.721,0.05195869]
[1771574789095,0.74513046,83.749,83.722,0.05392663]
[1771574795103,0.74513046,83.767,83.741,0.05957378]
[1771574795307,0.74513046,83.765,83.741,0.05957378]
[1771574800893,0.74513046,83.765,83.74,15.65230207]
[1771574800894,0.74513046,83.775,83.751,0.06567948]
[1771574801103,0.74513046,83.775,83.76,3.71063432]
[1771574801892,0.74513046,83.775,83.742,0.06649646]
[1771574802394,0.74513046,83.775,83.736,0.06730798]
[1771574802702,0.74513046,83.769,83.736,0.06730798]
[1771574802996,0.74513046,83.767,83.736,0.06730798]
[1771574804800,0.74513046,83.767,83.731,11.94300796]
[1771574805101,0.74513046,83.765,83.731,11.94300796]
[1771574805300,0.74513046,83.765,83.732,0.06972271]
[1771574805501,0.74513046,83.765,83.74,3.71063432]
[1771574807303,0.74513046,83.763,83.74,3.71063432]
[1771574808487,0.74513046,83.761,83.732,0.06972271]
[1771574809200,0.74513046,83.761,83.733,12.01477971]
[1771574810805,0.74513046,83.761,83.734,0.07355461]
[1771574817112,0.74513046,83.749,83.712,11.94569769]
[1771574817302,0.74513046,83.749,83.713,0.07788154]
[1771574819015,0.74513046,83.747,83.713,0.07788154]
[1771574819386,0.74513046,83.739,83.703,0.0799487]
[1771574820014,41.79204278,83.748,83.681,0.0799487]
[1771574820015,0.74513046,83.719,83.681,0.0799487]
[1771574820199,0.74513046,83.719,83.676,0.0799487]
[1771574820917,0.74513046,83.689,83.651,11.95442971]
[1771574821208,3.70042193,83.7,83.65,0.2]
[1771574821209,0.74513046,83.679,83.65,0.2]
[1771574821710,41.82200554,83.688,83.63,3.90042193]
[1771574821711,0.74513046,83.669,83.63,3.90042193]
[1771574821918,0.74513046,83.669,83.634,11.95680336]
[1771574822494,0.74513046,83.669,83.631,11.95728856]
[1771574823211,0.74513046,83.669,83.632,0.0819868]
[1771574823793,0.7690085,83.667,83.632,0.0819868]
[1771574824608,0.7690085,83.667,83.63,3.90042193]
[1771574824609,0.7690085,83.659,83.63,0.2]
[1771574825001,0.7690085,83.649,83.63,0.2]
[1771574826409,0.7690085,83.649,83.625,11.95814563]
[1771574826410,0.7690085,83.647,83.611,11.96014878]
[1771574826599,0.7690085,83.639,83.611,11.96014878]
[1771574827297,0.7690085,83.639,83.601,11.9615794]
[1771574828119,0.7690085,83.639,83.601,41.86552791]
[1771574831619,3.70042193,83.64,83.601,11.9615794]
[1771574831620,0.74513046,83.629,83.601,11.9615794]
[1771574832001,0.74513046,83.619,83.601,11.9615794]
[1771574832622,0.74513046,83.619,83.6,0.2]
[1771574836033,0.74513046,83.639,83.611,0.08569459]
[1771574837207,29.88613049,83.651,83.611,0.08569459]
[1771574837208,0.74513046,83.637,83.611,0.08569459]
[1771574837408,0.74513046,83.637,83.61,3.70042193]
[1771574837934,0.74513046,83.637,83.611,11.96014878]
[1771574839329,11.95498713,83.648,83.621,0.08090265]
[1771574839521,0.74513046,83.65,83.621,0.08090265]
[1771574839911,11.95471141,83.65,83.621,0.08090265]
[1771574840113,0.74513046,83.649,83.621,0.08090265]
[1771574841329,0.74513046,83.656,83.622,0.07859639]
[1771574841629,0.74513046,83.656,83.631,0.07859639]
[1771574842009,0.74513046,83.649,83.61,3.70042193]
[1771574842212,0.74513046,83.649,83.611,11.96003201]
[1771574844254,0.74513046,83.639,83.607,11.96067865]
[1771574845131,0.74513046,83.639,83.602,11.96134071]
[1771574846236,0.74513046,83.637,83.602,11.96134071]
[1771574846937,0.74513046,83.619,83.6,0.2]
[1771574848733,0.74513046,83.618,83.6,0.2]
[1771574853025,0.74513046,83.616,83.6,0.2]
[1771574853432,0.74513046,83.616,83.601,11.9615794]
[1771574854329,0.74513046,83.616,83.6,0.2]
[1771574856141,0.74513046,83.638,83.602,0.06379042]
[1771574856951,0.7668958,83.619,83.6,0.2]
[1771574859529,0.7668958,83.617,83.6,0.2]
[1771574865758,0.7668958,83.616,83.6,0.2]
[1771574871543,0.7668958,83.616,83.58,0.2]
[1771574871544,0.7668958,83.609,83.57,0.2]
[1771574871742,0.7668958,83.579,83.57,0.2]
[1771574871933,0.7668958,83.579,83.549,0.24875884]
[1771574872137,0.7668958,83.569,83.541,0.24875884]
[1771574872537,0.7668958,83.575,83.541,0.24875884]
[1771574873461,0.7668958,83.575,83.543,0.24748391]
[1771574873862,4.48429454,83.57,83.543,0.24748391]
[1771574874034,3.71739874,83.57,83.543,0.24748391]
[1771574874439,0.7668958,83.569,83.543,0.24748391]
[1771574875161,11.96544379,83.574,83.542,11.97002705]
[1771574875162,0.7668958,83.559,83.542,11.97002705]
[1771574875359,0.7668958,83.559,83.54,0.34624808]
[1771574875857,0.7668958,83.569,83.54,0.34624808]
[1771574877178,0.7668958,83.569,83.541,11.97017033]
[1771574878254,0.7668958,83.581,83.542,0.24503014]
[1771574878563,0.7668958,83.579,83.542,0.24503014]
[1771574879653,0.7668958,83.569,83.544,0.2438515]
[1771574881262,0.7668958,83.577,83.544,0.2438515]
[1771574882348,0.7668958,83.575,83.546,0.24213684]
[1771574885560,0.7668958,83.575,83.548,0.23994971]
[1771574887769,0.7668958,83.575,83.55,0.23834792]
[1771574889068,3.71739874,83.58,83.55,0.23834792]
[1771574889248,0.71640454,83.599,83.561,0.23732082]
[1771574889571,0.71640454,83.609,83.571,0.23732082]
[1771574890170,0.71640454,83.617,83.581,0.23732082]
[1771574891564,0.71640454,83.615,83.583,0.23630916]
[1771574891863,0.71640454,83.599,83.563,0.23630916]
[1771574892371,0.71640454,83.599,83.564,0.23630916]
[1771574895170,0.71640454,83.599,83.565,11.96673248]
[1771574895373,0.71640454,83.599,83.566,0.23370558]
[1771574899370,0.71640454,83.599,83.567,11.96644608]
[1771574899577,0.71640454,83.599,83.568,0.22861485]
[1771574902476,0.71640454,83.599,83.569,11.9661597]
[1771574902678,0.71640454,83.589,83.551,0.22570876]
[1771574904990,0.71640454,83.589,83.553,0.22382637]
[1771574908577,4.43380328,83.61,83.571,0.22018837]
[1771574908786,0.71640454,83.61,83.581,0.22018837]
[1771574908974,0.71640454,83.618,83.581,0.22018837]
[1771574909985,0.71640454,83.609,83.581,0.22018837]
[1771574910188,0.71640454,83.609,83.571,0.21930574]
[1771574910397,0.71640454,83.599,83.565,0.21843323]
[1771574910690,0.71640454,83.599,83.566,11.96658928]
[1771574910882,0.71640454,83.599,83.566,12.18502251]
[1771574912284,0.71640454,83.599,83.567,0.21671922]
[1771574913490,0.71640454,83.599,83.568,12.18217974]
[1771574913890,11.96200866,83.598,83.568,12.18217974]
[1771574914189,0.71640454,83.597,83.568,12.18217974]
[1771574915695,0.71640454,83.597,83.569,0.21422895]